[Event "EYCC Girls-U10 2019"]
[Site "Bratislava"]
[Date "2019.08.06"]
[Round "5.13"]
[White "Piddubna, Bozhena"]
[Black "Mgeladze, Kesaria"]
[Result "0-1"]
[ECO "A11"]
[WhiteElo "1444"]
[BlackElo "1294"]
[Annotator "NA"]
[PlyCount "112"]
[EventDate "2019.08.02"]
[EventType "swiss"]
[EventCountry "SVK"]
[SourceTitle "playchess.com"]
[Source "ChessBase"]
[SourceQuality "1"]
[TimeControl "40/5400+30:1800+30"]

1. c4 {[%emt 0:01:11]} c6 {[%emt 0:00:00]} 2. Nf3 {[%emt 0:00:45]} g6 {[%emt 0:00:06]} 3. g3 {[%emt 0:00:41]} Bg7 {[%emt 0:00:09]} 4. Bg2 {[%emt 0:00:49]} Nf6 {[%emt 0:00:21]} 5. Nc3 {[%emt 0:01:14]} O-O {[%emt 0:00:16]} 6. O-O {[%emt 0:00:14]} d6 {[%emt 0:00:11]} 7. d3 {[%emt 0:00:24]} Qc7 {[%emt 0:00:15]} 8. Be3 {[%emt 0:02:25]} Nbd7 {[%emt 0:00:41]} 9. Rc1 {[%emt 0:01:15]} e5 {[%emt 0:00:41]} 10. b4 {[%emt 0:03:40]} Ng4 {[%emt 0:01:09]} 11. d4 {[%emt 0:02:20]} Nxe3 {[%emt 0:02:58]} 12. fxe3 {[%emt 0:00:10]} Bh6 {[%emt 0:01:05]} 13. Qd3 {[%emt 0:05:17]} exd4 {[%emt 0:00:44]} 14. Nxd4 {[%emt 0:00:09]} Ne5 {[%emt 0:00:23]} 15. Qe4 {[%emt 0:01:30]} f5 {[%emt 0:01:16]} 16. Qh4 {[%emt 0:01:18]} Bxe3+ {[%emt 0:00:37]} 17. Kh1 {[%emt 0:00:08]} Bxc1 {[%emt 0:01:05]} 18. Rxc1 {[%emt 0:00:04]} Qd8 {[%emt 0:01:58]} 19. Qf4 {[%emt 0:01:18]} Qe7 {[%emt 0:01:06]} 20. b5 {[%emt 0:04:18]} Bd7 {[%emt 0:10:01]} 21. a4 {[%emt 0:02:07]} Rae8 {[%emt 0:08:03]} 22. a5 {[%emt 0:04:23]} a6 {[%emt 0:11:14]} 23. b6 {[%emt 0:00:38]} Ng4 {[%emt 0:01:04]} 24. Nb3 {[%emt 0:15:22]} Ne3 {[%emt 0:01:46]} 25. Qd4 {[%emt 0:04:15]} Nxg2 {[%emt 0:02:54]} 26. Kxg2 {[%emt 0:00:11]} Qe5 {[%emt 0:01:11]} 27. Qxe5 {[%emt 0:01:55]} Rxe5 {[%emt 0:01:09]} 28. Rd1 {[%emt 0:00:07]} Re3 {[%emt 0:00:33]} 29. Rd3 {[%emt 0:01:23]} Rfe8 {[%emt 0:00:49]} 30. Kf2 {[%emt 0:00:50]} R3e6 {[%emt 0:02:22]} 31. c5 {[%emt 0:00:48]} d5 {[%emt 0:00:57]} 32. Nd4 {[%emt 0:03:21]} Rf6 {[%emt 0:00:25]} 33. Rf3 {[%emt 0:02:32]} Ref8 {[%emt 0:01:18]} 34. e3 {[%emt 0:00:30]} Be8 {[%emt 0:00:14]} 35. Nce2 {[%emt 0:06:49]} g5 {[%emt 0:00:26]} 36. h4 {[%emt 0:01:02]} h6 {[%emt 0:01:28]} 37. Kg2 {[%emt 0:01:16]} Bg6 {[%emt 0:01:36]} 38. Kh2 {[%emt 0:02:35]} Bh5 {[%emt 0:01:24]} 39. Rf2 {[%emt 0:00:24]} Re8 {[%emt 0:00:25]} 40. Nc2 {[%emt 0:00:00]} Bxe2 {[%emt 0:00:00]} 41. Rxe2 {[%emt 0:03:08]} Rfe6 {[%emt 0:07:46]} 42. Rf2 {[%emt 0:01:35]} Rf6 {[%emt 0:00:35]} 43. Rf3 {[%emt 0:02:10]} g4 {[%emt 0:01:52]} 44. Rf4 {[%emt 0:01:46]} Re4 {[%emt 0:00:27]} 45. Rxe4 {[%emt 0:00:32]} fxe4 {[%emt 0:00:05]} 46. Kg2 {[%emt 0:00:11]} Rf3 {[%emt 0:00:07]} 47. h5 {[%emt 0:00:47]} Kh7 {[%emt 0:00:44]} 48. Nd4 {[%emt 0:00:58]} Rxe3 {[%emt 0:00:04]} 49. Nf5 {[%emt 0:00:24]} Ra3 {[%emt 0:00:30]} 50. Nd6 {[%emt 0:00:06]} Rxa5 {[%emt 0:00:20]} 51. Nxb7 {[%emt 0:00:04]} Rb5 {[%emt 0:00:25]} 52. Nd6 {[%emt 0:00:05]} Rxc5 {[%emt 0:00:28]} 53. b7 {[%emt 0:00:23]} Rc2+ {[%emt 0:00:03]} 54. Kf1 {[%emt 0:00:18]} Rb2 {[%emt 0:00:04]} 55. Nb5 {[%emt 0:01:27]} Rxb5 {[%emt 0:00:19]} 56. b8=Q {[%emt 0:00:05]} Rxb8 {[%emt 0:00:03]} 0-1

[Event "EYCC Girls-U10 2019"]
[Site "Bratislava"]
[Date "2019.08.06"]
[Round "5.14"]
[White "Haapsal, Maria Ioanna"]
[Black "Ciarletta, Iris"]
[Result "1/2-1/2"]
[ECO "C11"]
[WhiteElo "1127"]
[BlackElo "1329"]
[Annotator "NA"]
[PlyCount "97"]
[EventDate "2019.08.02"]
[EventType "swiss"]
[EventCountry "SVK"]
[SourceTitle "playchess.com"]
[Source "ChessBase"]
[SourceQuality "1"]
[TimeControl "40/5400+30:1800+30"]

1. e4 {[%emt 0:00:00]} e6 {[%emt 0:00:00]} 2. d4 {[%emt 0:00:00]} d5 {[%emt 0:00:00]} 3. Nc3 {[%emt 0:00:00]} Nf6 {[%emt 0:00:08]} 4. e5 {[%emt 0:00:00]} Nfd7 {[%emt 0:00:16]} 5. f4 {[%emt 0:00:10]} c5 {[%emt 0:00:28]} 6. Nf3 {[%emt 0:00:14]} Nc6 {[%emt 0:00:45]} 7. Be3 {[%emt 0:00:04]} Qb6 {[%emt 0:01:02]} 8. Rb1 {[%emt 0:04:21]} cxd4 {[%emt 0:01:07]} 9. Nxd4 {[%emt 0:02:26]} Bc5 {[%emt 0:02:16]} 10. Na4 {[%emt 0:02:17]} Qa5+ {[%emt 0:00:11]} 11. c3 {[%emt 0:00:38]} Nxd4 {[%emt 0:03:00]} 12. Bxd4 {[%emt 0:00:23]} Be7 {[%emt 0:00:29]} 13. Bd3 {[%emt 0:15:54]} b5 {[%emt 0:02:55]} 14. Nc5 {[%emt 0:03:22]} Nxc5 {[%emt 0:01:19]} 15. Bxc5 {[%emt 0:00:06]} Bxc5 {[%emt 0:00:34]} 16. b4 {[%emt 0:00:14]} Bxb4 {[%emt 0:01:08]} 17. cxb4 {[%emt 0:00:11]} Qb6 {[%emt 0:00:16]} 18. Qe2 {[%emt 0:01:00]} a6 {[%emt 0:01:00]} 19. Rc1 {[%emt 0:04:33]} O-O {[%emt 0:04:52]} 20. Qf2 {[%emt 0:00:54]} Qb7 {[%emt 0:01:44]} 21. Qc2 {[%emt 0:01:57]} Bd7 {[%emt 0:00:47]} 22. Bxh7+ {[%emt 0:02:20]} Kh8 {[%emt 0:00:07]} 23. Bd3 {[%emt 0:00:17]} Rfc8 {[%emt 0:01:29]} 24. Qd2 {[%emt 0:00:29]} Qb6 {[%emt 0:00:26]} 25. Ke2 {[%emt 0:06:57]} a5 {[%emt 0:06:14]} 26. Rxc8+ {[%emt 0:03:53]} Bxc8 {[%emt 0:00:14]} 27. a3 {[%emt 0:01:42]} Bd7 {[%emt 0:01:35]} 28. Rc1 {[%emt 0:03:44]} g6 {[%emt 0:01:18]} 29. bxa5 {[%emt 0:01:44]} Rxa5 {[%emt 0:00:43]} 30. Qb4 {[%emt 0:01:57]} Qd8 {[%emt 0:01:35]} 31. g3 {[%emt 0:08:48]} Kg8 {[%emt 0:01:25]} 32. Qd6 {[%emt 0:06:28]} Ra8 {[%emt 0:01:35]} 33. Qb4 {[%emt 0:09:07]} Qa5 {[%emt 0:01:49]} 34. Qxa5 {[%emt 0:02:19]} Rxa5 {[%emt 0:00:21]} 35. Rc7 {[%emt 0:00:54]} Be8 {[%emt 0:00:38]} 36. Rc3 {[%emt 0:06:15]} Kf8 {[%emt 0:01:44]} 37. Kd2 {[%emt 0:01:13]} Ke7 {[%emt 0:00:51]} 38. Kc1 {[%emt 0:00:44]} Ra4 {[%emt 0:00:42]} 39. Kb2 {[%emt 0:01:28]} f6 {[%emt 0:01:02]} 40. exf6+ {[%emt 0:00:00]} Kxf6 {[%emt 0:00:00]} 41. Rb3 {[%emt 0:02:50]} Ra5 {[%emt 0:02:00]} 42. Kc3 {[%emt 0:00:52]} Ra4 {[%emt 0:00:11]} 43. Kb2 {[%emt 0:01:35]} Ra5 {[%emt 0:00:20]} 44. Rb4 {[%emt 0:00:59]} Ke7 {[%emt 0:00:46]} 45. Rb3 {[%emt 0:02:21]} Kd6 {[%emt 0:00:44]} 46. Rc3 {[%emt 0:01:18]} Ra8 {[%emt 0:02:38]} 47. Rb3 {[%emt 0:01:33]} Ra5 {[%emt 0:00:36]} 48. Rc3 {[%emt 0:00:31]} Ra8 {[%emt 0:00:16]} 49. Rb3 {[%emt 0:01:06]} 1/2-1/2

[Event "EYCC Girls-U10 2019"]
[Site "Bratislava"]
[Date "2019.08.06"]
[Round "5.15"]
[White "Novomeska, Karin"]
[Black "Bendik, Margarita"]
[Result "0-1"]
[ECO "D15"]
[WhiteElo "1269"]
[BlackElo "1188"]
[Annotator "NA"]
[PlyCount "144"]
[EventDate "2019.08.02"]
[EventType "swiss"]
[EventCountry "SVK"]
[SourceTitle "playchess.com"]
[Source "ChessBase"]
[SourceQuality "1"]
[TimeControl "40/5400+30:1800+30"]

1. d4 {[%emt 0:00:00]} d5 {[%emt 0:00:00]} 2. c4 {[%emt 0:00:00]} c6 {[%emt 0:00:00]} 3. Nf3 {[%emt 0:00:00]} Nf6 {[%emt 0:00:16]} 4. Nc3 {[%emt 0:00:04]} a6 {[%emt 0:00:36]} 5. cxd5 {[%emt 0:00:11]} cxd5 {[%emt 0:00:17]} 6. Bf4 {[%emt 0:00:43]} Nc6 {[%emt 0:00:22]} 7. e3 {[%emt 0:00:39]} Nh5 {[%emt 0:01:09]} 8. Bd3 {[%emt 0:16:35]} Nxf4 {[%emt 0:00:38]} 9. exf4 {[%emt 0:00:11]} Bg4 {[%emt 0:00:12]} 10. Be2 {[%emt 0:03:40]} e6 {[%emt 0:01:16]} 11. Ne5 {[%emt 0:05:44]} Bxe2 {[%emt 0:01:18]} 12. Nxc6 {[%emt 0:06:23]} bxc6 {[%emt 0:00:44]} 13. Qxe2 {[%emt 0:01:47]} Bd6 {[%emt 0:00:26]} 14. f5 {[%emt 0:07:29]} O-O {[%emt 0:04:28]} 15. fxe6 {[%emt 0:06:19]} Re8 {[%emt 0:00:26]} 16. O-O {[%emt 0:00:54]} Rxe6 {[%emt 0:02:37]} 17. Qf3 {[%emt 0:01:26]} Qb6 {[%emt 0:01:17]} 18. Rfd1 {[%emt 0:09:13]} Qxb2 {[%emt 0:01:33]} 19. Rab1 {[%emt 0:01:55]} Rae8 {[%emt 0:02:40]} 20. g3 {[%emt 0:03:42]} Qa3 {[%emt 0:01:34]} 21. Rb7 {[%emt 0:01:35]} R6e7 {[%emt 0:02:21]} 22. Rxe7 {[%emt 0:04:19]} Rxe7 {[%emt 0:00:42]} 23. Rb1 {[%emt 0:00:31]} h6 {[%emt 0:02:27]} 24. Rb6 {[%emt 0:05:56]} Rc7 {[%emt 0:06:26]} 25. Rb8+ {[%emt 0:01:45]} Bf8 {[%emt 0:01:58]} 26. Qe3 {[%emt 0:01:48]} Qe7 {[%emt 0:01:10]} 27. Qxe7 {[%emt 0:00:27]} Rxe7 {[%emt 0:00:10]} 28. Rb6 {[%emt 0:00:26]} Re1+ {[%emt 0:00:45]} 29. Kg2 {[%emt 0:00:10]} Rc1 {[%emt 0:00:24]} 30. Ne2 {[%emt 0:02:10]} Rc2 {[%emt 0:00:15]} 31. Nf4 {[%emt 0:00:18]} g5 {[%emt 0:02:29]} 32. Nh5 {[%emt 0:00:55]} a5 {[%emt 0:02:24]} 33. Nf6+ {[%emt 0:00:38]} Kg7 {[%emt 0:00:29]} 34. Nd7 {[%emt 0:00:37]} a4 {[%emt 0:04:40]} 35. Ne5 {[%emt 0:02:07]} Rxa2 {[%emt 0:08:01]} 36. Rxc6 {[%emt 0:01:29]} Rd2 {[%emt 0:01:30]} 37. Nf3 {[%emt 0:02:01]} Rd1 {[%emt 0:00:44]} 38. g4 {[%emt 0:04:53]} a3 {[%emt 0:01:27]} 39. Ra6 {[%emt 0:01:00]} Bb4 {[%emt 0:03:13]} 40. Ra4 {[%emt 0:00:00]} Kf6 {[%emt 0:00:00]} 41. Ne5 {[%emt 0:07:36]} Bd6 {[%emt 0:03:05]} 42. Ra6 {[%emt 0:05:36]} Kg7 {[%emt 0:03:02]} 43. Ra7 {[%emt 0:07:42]} Rxd4 {[%emt 0:02:42]} 44. Nxf7 {[%emt 0:02:35]} Rxg4+ {[%emt 0:05:25]} 45. Kf1 {[%emt 0:04:11]} Bb8 {[%emt 0:01:14]} 46. Rb7 {[%emt 0:01:41]} Ra4 {[%emt 0:04:03]} 47. Nd8+ {[%emt 0:02:11]} Kg6 {[%emt 0:00:41]} 48. Rb6+ {[%emt 0:03:06]} Kh5 {[%emt 0:00:49]} 49. Rb1 {[%emt 0:01:55]} a2 {[%emt 0:00:12]} 50. Ra1 {[%emt 0:00:55]} Be5 {[%emt 0:00:08]} 51. Rxa2 {[%emt 0:02:24]} Rxa2 {[%emt 0:00:10]} 52. Nc6 {[%emt 0:00:06]} Bxh2 {[%emt 0:00:44]} 53. Nb4 {[%emt 0:00:15]} Ra4 {[%emt 0:00:25]} 54. Nxd5 {[%emt 0:00:24]} Kg6 {[%emt 0:00:40]} 55. Nc3 {[%emt 0:00:19]} Rg4 {[%emt 0:00:21]} 56. f3 {[%emt 0:00:31]} Rc4 {[%emt 0:00:41]} 57. Ne4 {[%emt 0:00:24]} g4 {[%emt 0:01:09]} 58. Nd2 {[%emt 0:02:19]} Rc2 {[%emt 0:00:41]} 59. Ke1 {[%emt 0:01:36]} Rxd2 {[%emt 0:00:34]} 60. Kxd2 {[%emt 0:00:21]} g3 {[%emt 0:00:05]} 61. Ke3 {[%emt 0:01:41]} g2 {[%emt 0:00:07]} 62. Ke4 {[%emt 0:00:17]} g1=Q {[%emt 0:00:12]} 63. f4 {[%emt 0:00:12]} Bxf4 {[%emt 0:00:40]} 64. Kxf4 {[%emt 0:00:12]} Qe1 {[%emt 0:00:10]} 65. Kf3 {[%emt 0:00:03]} Qe5 {[%emt 0:00:11]} 66. Kg4 {[%emt 0:00:36]} Qf5+ {[%emt 0:00:08]} 67. Kg3 {[%emt 0:00:21]} Qf1 {[%emt 0:00:18]} 68. Kg4 {[%emt 0:00:08]} Qf2 {[%emt 0:00:21]} 69. Kh3 {[%emt 0:00:18]} Qg1 {[%emt 0:00:44]} 70. Kh4 {[%emt 0:00:13]} Kf5 {[%emt 0:00:12]} 71. Kh3 {[%emt 0:00:12]} Kf4 {[%emt 0:00:07]} 72. Kh4 {[%emt 0:00:07]} Qg4# {[%emt 0:00:04]} 0-1

[Event "EYCC Girls-U10 2019"]
[Site "Bratislava"]
[Date "2019.08.06"]
[Round "5.17"]
[White "Arzur, Maia"]
[Black "Chevillon, Manon"]
[Result "1-0"]
[ECO "C54"]
[WhiteElo "1507"]
[BlackElo "1232"]
[Annotator "NA"]
[PlyCount "107"]
[EventDate "2019.08.02"]
[EventType "swiss"]
[EventCountry "SVK"]
[SourceTitle "playchess.com"]
[Source "ChessBase"]
[SourceQuality "1"]
[TimeControl "40/5400+30:1800+30"]

1. e4 {[%emt 0:00:00]} e5 {[%emt 0:00:05]} 2. Nf3 {[%emt 0:00:05]} Nc6 {[%emt 0:00:46]} 3. Bc4 {[%emt 0:00:38]} Bc5 {[%emt 0:01:17]} 4. c3 {[%emt 0:00:43]} Nf6 {[%emt 0:02:32]} 5. d3 {[%emt 0:01:29]} d6 {[%emt 0:02:24]} 6. O-O {[%emt 0:01:45]} Qe7 {[%emt 0:06:14]} 7. a4 {[%emt 0:04:52]} a5 {[%emt 0:10:29]} 8. Re1 {[%emt 0:09:09]} Be6 {[%emt 0:06:14]} 9. Bb5 {[%emt 0:05:16]} Bd7 {[%emt 0:04:44]} 10. d4 {[%emt 0:04:00]} exd4 {[%emt 0:06:28]} 11. cxd4 {[%emt 0:01:01]} Bb4 {[%emt 0:02:01]} 12. Nc3 {[%emt 0:02:50]} O-O-O {[%emt 0:03:50]} 13. Bd2 {[%emt 0:09:47]} Na7 {[%emt 0:04:30]} 14. Bxd7+ {[%emt 0:03:00]} Qxd7 {[%emt 0:01:32]} 15. Qc2 {[%emt 0:03:28]} h6 {[%emt 0:04:02]} 16. Na2 {[%emt 0:02:51]} Bxd2 {[%emt 0:01:04]} 17. Nxd2 {[%emt 0:00:39]} Rhe8 {[%emt 0:04:23]} 18. b4 {[%emt 0:01:31]} axb4 {[%emt 0:02:42]} 19. Nxb4 {[%emt 0:00:33]} Kb8 {[%emt 0:02:48]} 20. d5 {[%emt 0:01:59]} g5 {[%emt 0:04:00]} 21. Rab1 {[%emt 0:03:16]} Ka8 {[%emt 0:04:37]} 22. Qb2 {[%emt 0:04:23]} Ng8 {[%emt 0:07:36]} 23. Nc6 {[%emt 0:01:46]} Rb8 {[%emt 0:02:06]} 24. Nxb8 {[%emt 0:01:04]} Rxb8 {[%emt 0:00:12]} 25. a5 {[%emt 0:01:29]} Qd8 {[%emt 0:01:38]} 26. Nc4 {[%emt 0:01:42]} Nf6 {[%emt 0:02:21]} 27. Nb6+ {[%emt 0:00:41]} cxb6 {[%emt 0:00:42]} 28. axb6 {[%emt 0:00:05]} Nd7 {[%emt 0:04:36]} 29. bxa7 {[%emt 0:00:41]} Qc7 {[%emt 0:00:36]} 30. axb8=Q+ {[%emt 0:00:29]} Kxb8 {[%emt 0:00:15]} 31. Ra1 {[%emt 0:00:36]} Qc8 {[%emt 0:01:13]} 32. Qa3 {[%emt 0:00:43]} Kc7 {[%emt 0:01:09]} 33. Rec1+ {[%emt 0:00:43]} Nc5 {[%emt 0:00:45]} 34. Rxc5+ {[%emt 0:00:12]} dxc5 {[%emt 0:00:24]} 35. Qxc5+ {[%emt 0:00:08]} Kd7 {[%emt 0:00:34]} 36. Qxc8+ {[%emt 0:00:21]} Kxc8 {[%emt 0:00:13]} 37. e5 {[%emt 0:00:07]} Kd7 {[%emt 0:00:15]} 38. Ra7 {[%emt 0:00:10]} Kc7 {[%emt 0:00:35]} 39. e6 {[%emt 0:00:25]} fxe6 {[%emt 0:00:36]} 40. dxe6 {[%emt 0:00:00]} Kd6 {[%emt 0:00:00]} 41. Rxb7 {[%emt 0:00:31]} Kxe6 {[%emt 0:00:56]} 42. Rb6+ {[%emt 0:00:13]} Kf5 {[%emt 0:00:36]} 43. Rxh6 {[%emt 0:00:10]} g4 {[%emt 0:00:42]} 44. Rh8 {[%emt 0:00:39]} Kg5 {[%emt 0:00:36]} 45. Rg8+ {[%emt 0:00:12]} Kh5 {[%emt 0:00:33]} 46. f3 {[%emt 0:00:10]} Kh4 {[%emt 0:00:44]} 47. f4 {[%emt 0:00:21]} Kh5 {[%emt 0:00:43]} 48. f5 {[%emt 0:00:06]} g3 {[%emt 0:00:37]} 49. f6 {[%emt 0:00:20]} gxh2+ {[%emt 0:00:39]} 50. Kxh2 {[%emt 0:00:12]} Kh6 {[%emt 0:00:16]} 51. f7 {[%emt 0:00:11]} Kh7 {[%emt 0:00:35]} 52. Rg3 {[%emt 0:00:14]} Kh6 {[%emt 0:00:40]} 53. f8=Q+ {[%emt 0:00:08]} Kh7 {[%emt 0:00:36]} 54. Qg7# {[%emt 0:00:05]} 1-0

[Event "EYCC Girls-U10 2019"]
[Site "Bratislava"]
[Date "2019.08.06"]
[Round "5.18"]
[White "Bat, Anu"]
[Black "Briem, Gudrun Fanney"]
[Result "1-0"]
[ECO "A45"]
[WhiteElo "1457"]
[BlackElo "1199"]
[Annotator "NA"]
[PlyCount "51"]
[EventDate "2019.08.02"]
[EventType "swiss"]
[EventCountry "SVK"]
[SourceTitle "playchess.com"]
[Source "ChessBase"]
[SourceQuality "1"]
[TimeControl "40/5400+30:1800+30"]

1. d4 {[%emt 0:00:00]} Nf6 {[%emt 0:00:00]} 2. Bg5 {[%emt 0:00:00]} e6 {[%emt 0:00:00]} 3. e4 {[%emt 0:05:21]} h6 {[%emt 0:00:47]} 4. Bxf6 {[%emt 0:00:53]} Qxf6 {[%emt 0:00:34]} 5. Nf3 {[%emt 0:01:29]} Bb4+ {[%emt 0:00:13]} 6. c3 {[%emt 0:00:41]} Be7 {[%emt 0:01:14]} 7. Nbd2 {[%emt 0:00:28]} b6 {[%emt 0:00:25]} 8. Bd3 {[%emt 0:00:51]} Bb7 {[%emt 0:00:34]} 9. Qe2 {[%emt 0:01:02]} O-O {[%emt 0:00:44]} 10. O-O-O {[%emt 0:03:40]} Bd8 {[%emt 0:02:30]} 11. Rdg1 {[%emt 0:01:27]} d5 {[%emt 0:02:13]} 12. e5 {[%emt 0:01:32]} Qe7 {[%emt 0:00:13]} 13. h4 {[%emt 0:01:07]} Nd7 {[%emt 0:05:13]} 14. g4 {[%emt 0:01:05]} a5 {[%emt 0:02:32]} 15. g5 {[%emt 0:00:47]} g6 {[%emt 0:06:34]} 16. gxh6 {[%emt 0:01:24]} a4 {[%emt 0:00:16]} 17. a3 {[%emt 0:00:48]} c5 {[%emt 0:00:51]} 18. h5 {[%emt 0:07:03]} Kh8 {[%emt 0:03:57]} 19. h7 {[%emt 0:04:44]} gxh5 {[%emt 0:01:38]} 20. Rxh5 {[%emt 0:01:51]} Bc7 {[%emt 0:02:20]} 21. Rhg5 {[%emt 0:04:27]} c4 {[%emt 0:06:41]} 22. Bc2 {[%emt 0:00:28]} b5 {[%emt 0:00:11]} 23. Ne1 {[%emt 0:00:41]} Bc6 {[%emt 0:04:12]} 24. Rg8+ {[%emt 0:00:40]} Rxg8 {[%emt 0:01:00]} 25. hxg8=Q+ {[%emt 0:00:16]} Rxg8 {[%emt 0:00:46]} 26. Qh5# {[%emt 0:00:09]} 1-0

[Event "EYCC Girls-U10 2019"]
[Site "Bratislava"]
[Date "2019.08.06"]
[Round "5.19"]
[White "Mkrtchyan, Anahit H."]
[Black "Zubkovskaya, Ekaterina"]
[Result "1-0"]
[ECO "B51"]
[WhiteElo "1155"]
[BlackElo "1449"]
[Annotator "NA"]
[PlyCount "119"]
[EventDate "2019.08.02"]
[EventType "swiss"]
[EventCountry "SVK"]
[SourceTitle "playchess.com"]
[Source "ChessBase"]
[SourceQuality "1"]
[TimeControl "40/5400+30:1800+30"]

1. e4 {[%emt 0:00:00]} c5 {[%emt 0:00:00]} 2. Nf3 {[%emt 0:00:00]} d6 {[%emt 0:00:00]} 3. Bb5+ Nd7 {[%emt 0:00:00]} 4. O-O {[%emt 0:00:00]} a6 {[%emt 0:00:11]} 5. Bxd7+ {[%emt 0:01:49]} Bxd7 {[%emt 0:00:10]} 6. c3 {[%emt 0:00:05]} Nf6 {[%emt 0:00:09]} 7. Re1 {[%emt 0:00:29]} e6 {[%emt 0:00:15]} 8. d4 {[%emt 0:03:19]} cxd4 {[%emt 0:00:14]} 9. cxd4 {[%emt 0:00:03]} Be7 {[%emt 0:00:19]} 10. Nc3 {[%emt 0:01:18]} O-O {[%emt 0:01:45]} 11. e5 {[%emt 0:00:46]} Nd5 {[%emt 0:00:28]} 12. Nxd5 {[%emt 0:01:39]} exd5 {[%emt 0:00:16]} 13. Bf4 {[%emt 0:01:04]} Be6 {[%emt 0:01:41]} 14. Rc1 {[%emt 0:02:22]} Qd7 {[%emt 0:07:25]} 15. exd6 {[%emt 0:03:26]} Bxd6 {[%emt 0:00:15]} 16. Ne5 {[%emt 0:00:42]} Qd8 {[%emt 0:01:24]} 17. Qf3 {[%emt 0:02:22]} Bb4 {[%emt 0:03:49]} 18. Re2 {[%emt 0:02:00]} Rc8 {[%emt 0:03:55]} 19. Rec2 {[%emt 0:02:10]} Rxc2 {[%emt 0:00:25]} 20. Rxc2 {[%emt 0:00:26]} Ba5 {[%emt 0:01:18]} 21. Qg3 {[%emt 0:03:18]} Kh8 {[%emt 0:00:37]} 22. h4 {[%emt 0:05:44]} Bf5 {[%emt 0:01:34]} 23. Rc1 {[%emt 0:02:47]} Qb6 {[%emt 0:01:59]} 24. Rc7 {[%emt 0:00:55]} Be6 {[%emt 0:02:24]} 25. Nd3 {[%emt 0:10:39]} Qa7 {[%emt 0:03:40]} 26. Be5 {[%emt 0:03:06]} Rg8 {[%emt 0:00:48]} 27. Re7 {[%emt 0:00:26]} Qa8 {[%emt 0:03:54]} 28. Nf4 {[%emt 0:03:47]} Qf8 {[%emt 0:06:54]} 29. Rxb7 {[%emt 0:07:38]} Bc8 {[%emt 0:02:24]} 30. Rb8 {[%emt 0:02:44]} f6 {[%emt 0:02:17]} 31. Bd6 {[%emt 0:04:51]} Qf7 {[%emt 0:01:26]} 32. b4 {[%emt 0:01:45]} Re8 {[%emt 0:04:28]} 33. bxa5 {[%emt 0:02:11]} Kg8 {[%emt 0:01:15]} 34. Qb3 {[%emt 0:01:28]} Kh8 {[%emt 0:02:06]} 35. Qxd5 {[%emt 0:02:21]} Qd7 {[%emt 0:00:26]} 36. Qc5 {[%emt 0:01:00]} Qg4 {[%emt 0:01:05]} 37. Qh5 {[%emt 0:01:17]} Qd7 {[%emt 0:00:42]} 38. Ng6+ {[%emt 0:01:30]} Kg8 {[%emt 0:00:23]} 39. Ne7+ {[%emt 0:00:18]} Kh8 {[%emt 0:00:33]} 40. Qxe8+ {[%emt 0:00:00]} Qxe8 {[%emt 0:00:00]} 41. Rxc8 {[%emt 0:00:24]} Qxc8 {[%emt 0:00:48]} 42. Nxc8 {[%emt 0:00:04]} Kg8 {[%emt 0:00:07]} 43. Bc5 {[%emt 0:00:08]} Kf7 {[%emt 0:00:14]} 44. d5 {[%emt 0:00:15]} Ke8 {[%emt 0:00:09]} 45. d6 {[%emt 0:00:07]} Kd7 {[%emt 0:00:14]} 46. Nb6+ {[%emt 0:00:09]} Kd8 {[%emt 0:00:06]} 47. d7 {[%emt 0:00:23]} g6 {[%emt 0:00:14]} 48. Bd4 {[%emt 0:00:05]} Ke7 {[%emt 0:00:13]} 49. Bxf6+ {[%emt 0:00:09]} Kxf6 {[%emt 0:00:11]} 50. d8=Q+ {[%emt 0:00:05]} Ke6 {[%emt 0:00:08]} 51. Qd5+ {[%emt 0:00:06]} Ke7 {[%emt 0:00:10]} 52. Nc8+ {[%emt 0:00:17]} Kf6 {[%emt 0:00:34]} 53. g4 {[%emt 0:00:11]} h6 {[%emt 0:00:06]} 54. g5+ {[%emt 0:00:03]} hxg5 {[%emt 0:00:06]} 55. hxg5+ {[%emt 0:00:03]} Kg7 {[%emt 0:00:08]} 56. Qd7+ {[%emt 0:00:10]} Kf8 {[%emt 0:00:09]} 57. Qe7+ {[%emt 0:00:21]} Kg8 {[%emt 0:00:09]} 58. Nd6 {[%emt 0:00:06]} Kh8 {[%emt 0:00:18]} 59. Ne8 {[%emt 0:00:13]} Kg8 {[%emt 0:00:05]} 60. Qg7# {[%emt 0:00:03]} 1-0